[Event "Queens Festival Final-D 2022"]
[Site "Tornelo"]
[Date "2022.06.25"]
[Round "1.3"]
[White "Vujovic, Vera"]
[Black "Mak, Xiu Ning Charlene"]
[Result "0-1"]
[ECO "B35"]
[WhiteElo "1353"]
[BlackElo "1573"]
[Annotator "NA RC"]
[PlyCount "206"]
[EventDate "2022.06.24"]
[EventType "tourn"]
[EventCountry "NET"]
[SourceTitle "playchess.com"]
[Source "ChessBase"]
[SourceQuality "1"]
[TimeControl "180+2"]

1. e4 {[%emt 0:00:02]} c5 {[%emt 0:00:05]} 2. Nf3 {[%emt 0:00:04]} Nc6 {[%emt 0:00:02]} 3. d4 {[%emt 0:00:01]} cxd4 {[%emt 0:00:02]} 4. Nxd4 {[%emt 0:00:00]} g6 {[%emt 0:00:02]} 5. Be3 {[%emt 0:00:04]} Bg7 {[%emt 0:00:02]} 6. Nc3 {[%emt 0:00:02]} Nf6 {[%emt 0:00:02]} 7. Bc4 {[%emt 0:00:05]} Qa5 {[%emt 0:00:02]} 8. f3 {[%emt 0:00:13]} Qb4 {[%emt 0:00:14]} 9. Bb3 {[%emt 0:00:20]} Nxe4 {[%emt 0:00:07]} 10. a3 {[%emt 0:00:22]} Nxc3 {[%emt 0:00:24]} 11. Qd2 {[%emt 0:00:31]} Qd6 {[%emt 0:00:20]} 12. bxc3 {[%emt 0:00:04]} a6 {[%emt 0:00:10]} 13. Bf4 {[%emt 0:00:10]} Qc5 {[%emt 0:00:09]} 14. Be3 {[%emt 0:00:04]} Qe5 {[%emt 0:00:23]} 15. O-O {[%emt 0:00:06]} O-O {[%emt 0:00:05]} 16. Rfe1 {[%emt 0:00:04]} Qa5 {[%emt 0:00:02]} 17. Nxc6 {[%emt 0:00:15]} bxc6 {[%emt 0:00:08]} 18. Bd4 {[%emt 0:00:02]} Bxd4+ {[%emt 0:00:15]} 19. Qxd4 {[%emt 0:00:02]} Qd8 {[%emt 0:00:11]} 20. Rad1 {[%emt 0:00:08]} d5 {[%emt 0:00:02]} 21. c4 {[%emt 0:00:03]} e6 {[%emt 0:00:15]} 22. cxd5 {[%emt 0:00:03]} cxd5 {[%emt 0:00:02]} 23. c4 {[%emt 0:00:06]} Bb7 {[%emt 0:00:13]} 24. cxd5 {[%emt 0:00:03]} exd5 {[%emt 0:00:02]} 25. Bxd5 {[%emt 0:00:03]} Bxd5 {[%emt 0:00:07]} 26. Qxd5 {[%emt 0:00:03]} Qb6+ {[%emt 0:00:01]} 27. Kh1 {[%emt 0:00:02]} Rad8 {[%emt 0:00:02]} 28. Qe4 {[%emt 0:00:04]} Rxd1 {[%emt 0:00:03]} 29. Rxd1 {[%emt 0:00:01]} Qb3 {[%emt 0:00:01]} 30. Ra1 {[%emt 0:00:05]} Rc8 {[%emt 0:00:06]} 31. h3 {[%emt 0:00:09]} Rd8 {[%emt 0:00:03]} 32. Qe2 {[%emt 0:00:07]} Qc3 {[%emt 0:00:01]} 33. Ra2 {[%emt 0:00:05]} Qc1+ {[%emt 0:00:03]} 34. Kh2 {[%emt 0:00:02]} Qc7+ {[%emt 0:00:00]} 35. g3 {[%emt 0:00:02]} Qc6 {[%emt 0:00:01]} 36. Rc2 {[%emt 0:00:03]} Qa4 {[%emt 0:00:02]} 37. Ra2 {[%emt 0:00:03]} Qb3 {[%emt 0:00:02]} 38. Ra1 {[%emt 0:00:06]} a5 {[%emt 0:00:02]} 39. h4 {[%emt 0:00:03]} Qc3 {[%emt 0:00:01]} 40. Ra2 {[%emt 0:00:02]} Rd3 {[%emt 0:00:05]} 41. Kg2 {[%emt 0:00:04]} Rd8 {[%emt 0:00:02]} 42. Qc2 {[%emt 0:00:05]} Qd4 {[%emt 0:00:01]} 43. Qf2 {[%emt 0:00:03]} Qd3 {[%emt 0:00:02]} 44. Qe2 {[%emt 0:00:02]} Qc3 {[%emt 0:00:01]} 45. Qb2 {[%emt 0:00:02]} Qd4 {[%emt 0:00:04]} 46. Qxd4 {[%emt 0:00:03]} Rxd4 {[%emt 0:00:01]} 47. Kf2 {[%emt 0:00:02]} Kf8 {[%emt 0:00:03]} 48. Ke3 {[%emt 0:00:01]} Rd7 {[%emt 0:00:04]} 49. Rb2 {[%emt 0:00:02]} Ke7 {[%emt 0:00:03]} 50. Rb5 {[%emt 0:00:02]} Ra7 {[%emt 0:00:04]} 51. Kd4 {[%emt 0:00:02]} Kd6 {[%emt 0:00:00]} 52. Rb6+ {[%emt 0:00:02]} Kc7 {[%emt 0:00:06]} 53. Rf6 {[%emt 0:00:02]} Kd8 {[%emt 0:00:03]} 54. Kc5 {[%emt 0:00:04]} Ke7 {[%emt 0:00:01]} 55. Rc6 {[%emt 0:00:02]} Rd7 {[%emt 0:00:01]} 56. Kc4 {[%emt 0:00:04]} Rd1 {[%emt 0:00:05]} 57. Ra6 {[%emt 0:00:05]} Rf1 {[%emt 0:00:03]} 58. f4 {[%emt 0:00:07]} Rf3 {[%emt 0:00:02]} 59. Rxa5 {[%emt 0:00:01]} Rxg3 {[%emt 0:00:02]} 60. Kd4 {[%emt 0:00:01]} Kf6 {[%emt 0:00:05]} 61. Ke4 {[%emt 0:00:03]} Rb3 {[%emt 0:00:03]} 62. a4 {[%emt 0:00:01]} Ra3 {[%emt 0:00:02]} 63. Ra6+ {[%emt 0:00:03]} Ke7 {[%emt 0:00:02]} 64. a5 {[%emt 0:00:01]} Ra4+ {[%emt 0:00:03]} 65. Kf3 {[%emt 0:00:01]} h6 {[%emt 0:00:04]} 66. Kg4 {[%emt 0:00:01]} Kf8 {[%emt 0:00:03]} 67. Ra7 {[%emt 0:00:03]} Kg7 {[%emt 0:00:00]} 68. a6 {[%emt 0:00:01]} Ra5 {[%emt 0:00:02]} 69. Kf3 {[%emt 0:00:03]} h5 {[%emt 0:00:01]} 70. Ke4 {[%emt 0:00:01]} Kf6 {[%emt 0:00:01]} 71. Kd4 {[%emt 0:00:03]} Ra4+ {[%emt 0:00:00]} 72. Ke3 {[%emt 0:00:01]} Ra3+ {[%emt 0:00:02]} 73. Ke4 {[%emt 0:00:01]} Ke6 {[%emt 0:00:01]} 74. Ra8 {[%emt 0:00:02]} Ra4+ {[%emt 0:00:02]} 75. Ke3 {[%emt 0:00:05]} Kf5 {[%emt 0:00:01]} 76. Ra7 {[%emt 0:00:01]} f6 {[%emt 0:00:01]} 77. Ra8 {[%emt 0:00:03]} Rxf4 {[%emt 0:00:02]} 78. Rc8 {[%emt 0:00:02]} Ra4 {[%emt 0:00:01]} 79. Rc5+ {[%emt 0:00:02]} Kg4 {[%emt 0:00:01]} 80. Rc6 {[%emt 0:00:01]} g5 {[%emt 0:00:02]} 81. hxg5 {[%emt 0:00:02]} fxg5 {[%emt 0:00:01]} 82. Kf2 {[%emt 0:00:01]} Ra2+ {[%emt 0:00:03]} 83. Kg1 {[%emt 0:00:02]} h4 {[%emt 0:00:00]} 84. Rc4+ {[%emt 0:00:02]} Kg3 {[%emt 0:00:02]} 85. Rc3+ {[%emt 0:00:01]} Kf4 {[%emt 0:00:01]} 86. Rc4+ {[%emt 0:00:01]} Kf3 {[%emt 0:00:01]} 87. Rc3+ {[%emt 0:00:02]} Kg4 {[%emt 0:00:00]} 88. Rc4+ {[%emt 0:00:01]} Kh5 {[%emt 0:00:01]} 89. Rc5 {[%emt 0:00:02]} Rxa6 {[%emt 0:00:03]} 90. Rb5 {[%emt 0:00:01]} Ra2 {[%emt 0:00:01]} 91. Rb4 {[%emt 0:00:02]} h3 {[%emt 0:00:03]} 92. Rb8 {[%emt 0:00:04]} Kg4 {[%emt 0:00:01]} 93. Rb4+ {[%emt 0:00:02]} Kg3 {[%emt 0:00:01]} 94. Rb3+ {[%emt 0:00:01]} Kh4 {[%emt 0:00:01]} 95. Rb5 {[%emt 0:00:03]} g4 {[%emt 0:00:01]} 96. Rb4 {[%emt 0:00:02]} Ra3 {[%emt 0:00:03]} 97. Rc4 {[%emt 0:00:02]} Kg3 {[%emt 0:00:01]} 98. Rc1 {[%emt 0:00:02]} h2+ {[%emt 0:00:03]} 99. Kh1 {[%emt 0:00:01]} Kh3 {[%emt 0:00:02]} 100. Rd1 {[%emt 0:00:03]} g3 {[%emt 0:00:02]} 101. Rg1 {[%emt 0:00:02]} g2+ {[%emt 0:00:04]} 102. Rxg2 {[%emt 0:00:01]} Ra1+ {[%emt 0:00:01]} 103. Rg1 {[%emt 0:00:01]} Rxg1# {[%emt 0:00:01]} 0-1

[Event "Queens Festival Final-D 2022"]
[Site "Tornelo"]
[Date "2022.06.25"]
[Round "1.4"]
[White "Jiang, Tianyu"]
[Black "Shah, Riya"]
[Result "1-0"]
[ECO "B06"]
[WhiteElo "1502"]
[BlackElo "1559"]
[Annotator "NA RC"]
[PlyCount "53"]
[EventDate "2022.06.24"]
[EventType "tourn"]
[EventCountry "NET"]
[SourceTitle "playchess.com"]
[Source "ChessBase"]
[SourceQuality "1"]
[TimeControl "180+2"]

1. Nc3 {[%emt 0:00:02]} g6 {[%emt 0:00:05]} 2. e4 {[%emt 0:00:02]} Bg7 {[%emt 0:00:03]} 3. d4 {[%emt 0:00:01]} c5 {[%emt 0:00:03]} 4. Be3 {[%emt 0:00:04]} Qb6 {[%emt 0:00:04]} 5. Nd5 {[%emt 0:01:08]} Qd8 {[%emt 0:00:19]} 6. c3 {[%emt 0:00:20]} e6 {[%emt 0:00:03]} 7. Nf4 {[%emt 0:00:01]} cxd4 {[%emt 0:00:23]} 8. cxd4 {[%emt 0:00:07]} Ne7 {[%emt 0:00:02]} 9. Nf3 {[%emt 0:00:06]} O-O {[%emt 0:00:03]} 10. Bd3 {[%emt 0:00:22]} d5 {[%emt 0:00:02]} 11. e5 {[%emt 0:00:02]} f6 {[%emt 0:00:04]} 12. exf6 {[%emt 0:00:04]} Rxf6 {[%emt 0:00:13]} 13. O-O {[%emt 0:00:02]} Nbc6 {[%emt 0:00:03]} 14. Ne2 {[%emt 0:00:06]} Nf5 {[%emt 0:00:08]} 15. Bg5 {[%emt 0:00:03]} a6 {[%emt 0:00:13]} 16. Bxf6 {[%emt 0:00:03]} Bxf6 {[%emt 0:00:03]} 17. Qd2 {[%emt 0:00:03]} Bd7 {[%emt 0:00:22]} 18. Rfe1 {[%emt 0:00:04]} Qc7 {[%emt 0:00:20]} 19. Bxf5 {[%emt 0:00:08]} exf5 {[%emt 0:00:05]} 20. Qf4 {[%emt 0:00:11]} Qd8 {[%emt 0:00:11]} 21. Nc3 {[%emt 0:00:06]} Nb4 {[%emt 0:00:07]} 22. Rad1 {[%emt 0:00:08]} Rc8 {[%emt 0:00:10]} 23. a3 {[%emt 0:00:02]} Nc6 {[%emt 0:00:29]} 24. Nxd5 {[%emt 0:00:02]} Bg7 {[%emt 0:00:04]} 25. Nc3 {[%emt 0:00:01]} Qf6 {[%emt 0:00:03]} 26. d5 {[%emt 0:00:05]} Nd8 {[%emt 0:00:09]} 27. Ne5 {[%emt 0:00:06]} 1-0

[Event "Queens Festival Final-D 2022"]
[Site "Tornelo"]
[Date "2022.06.25"]
[Round "1.5"]
[White "Amulya Guruprasad"]
[Black "Rozas Lazcano, Valeska"]
[Result "1/2-1/2"]
[ECO "B41"]
[WhiteElo "1251"]
[BlackElo "1551"]
[Annotator "NA RC"]
[PlyCount "139"]
[EventDate "2022.06.24"]
[EventType "tourn"]
[EventCountry "NET"]
[SourceTitle "playchess.com"]
[Source "ChessBase"]
[SourceQuality "1"]
[TimeControl "180+2"]

1. e4 {[%emt 0:00:02]} c5 {[%emt 0:00:04]} 2. Nf3 {[%emt 0:00:02]} e6 {[%emt 0:00:02]} 3. d4 {[%emt 0:00:01]} cxd4 {[%emt 0:00:01]} 4. Nxd4 {[%emt 0:00:01]} a6 {[%emt 0:00:01]} 5. c4 {[%emt 0:00:01]} Be7 {[%emt 0:00:02]} 6. Nc3 {[%emt 0:00:01]} Qc7 {[%emt 0:00:01]} 7. Bd3 {[%emt 0:00:03]} b6 {[%emt 0:00:02]} 8. O-O {[%emt 0:00:02]} Bb7 {[%emt 0:00:01]} 9. f4 {[%emt 0:00:03]} d6 {[%emt 0:00:04]} 10. Kh1 {[%emt 0:00:02]} Nf6 {[%emt 0:00:02]} 11. Be3 {[%emt 0:00:04]} g6 {[%emt 0:00:01]} 12. Rc1 {[%emt 0:00:02]} Nbd7 {[%emt 0:00:02]} 13. f5 {[%emt 0:00:05]} gxf5 {[%emt 0:00:02]} 14. exf5 {[%emt 0:00:01]} e5 {[%emt 0:00:01]} 15. Nf3 {[%emt 0:00:05]} Rg8 {[%emt 0:00:22]} 16. Nd5 {[%emt 0:00:06]} Nxd5 {[%emt 0:00:49]} 17. cxd5 {[%emt 0:00:02]} Qd8 {[%emt 0:00:01]} 18. Bc4 {[%emt 0:00:04]} Nf6 {[%emt 0:00:04]} 19. Bb3 {[%emt 0:00:03]} b5 {[%emt 0:00:13]} 20. a4 {[%emt 0:00:03]} Rc8 {[%emt 0:00:05]} 21. axb5 {[%emt 0:00:05]} axb5 {[%emt 0:00:02]} 22. Qd3 {[%emt 0:00:09]} Qd7 {[%emt 0:00:26]} 23. Nd2 {[%emt 0:00:17]} Bd8 {[%emt 0:00:09]} 24. Ne4 {[%emt 0:00:09]} Nxe4 {[%emt 0:00:10]} 25. Qxe4 {[%emt 0:00:02]} f6 {[%emt 0:00:16]} 26. Qh4 {[%emt 0:00:11]} Qg7 {[%emt 0:00:15]} 27. Qh5+ {[%emt 0:00:12]} Ke7 {[%emt 0:00:05]} 28. Qe2 {[%emt 0:00:03]} Qg4 {[%emt 0:00:08]} 29. Qf2 {[%emt 0:00:16]} Qe4 {[%emt 0:00:09]} 30. Rc5 {[%emt 0:00:17]} dxc5 {[%emt 0:00:03]} 31. Bxc5+ {[%emt 0:00:03]} Ke8 {[%emt 0:00:08]} 32. Be3 {[%emt 0:00:27]} Qg4 {[%emt 0:00:04]} 33. Rd1 {[%emt 0:00:07]} Qg7 {[%emt 0:00:02]} 34. g3 {[%emt 0:00:06]} Qd7 {[%emt 0:00:02]} 35. Kg1 {[%emt 0:00:02]} b4 {[%emt 0:00:02]} 36. Bc5 {[%emt 0:00:03]} h5 {[%emt 0:00:02]} 37. Bxb4 {[%emt 0:00:02]} h4 {[%emt 0:00:02]} 38. d6 {[%emt 0:00:03]} hxg3 {[%emt 0:00:01]} 39. hxg3 {[%emt 0:00:02]} Rc6 {[%emt 0:00:02]} 40. Bxg8 {[%emt 0:00:02]} Bb6 {[%emt 0:00:02]} 41. Kg2 {[%emt 0:00:14]} Bxf2 {[%emt 0:00:04]} 42. Kxf2 {[%emt 0:00:02]} Rc2+ {[%emt 0:00:02]} 43. Ke1 {[%emt 0:00:02]} Qb5 {[%emt 0:00:02]} 44. d7+ {[%emt 0:00:05]} Qxd7 {[%emt 0:00:04]} 45. Rxd7 {[%emt 0:00:03]} Kxd7 {[%emt 0:00:02]} 46. Be6+ {[%emt 0:00:01]} Ke8 {[%emt 0:00:01]} 47. b3 {[%emt 0:00:04]} Be4 {[%emt 0:00:02]} 48. Kd1 {[%emt 0:00:04]} Rg2 {[%emt 0:00:01]} 49. Bd6 {[%emt 0:00:07]} Rxg3 {[%emt 0:00:02]} 50. b4 {[%emt 0:00:01]} Rf3 {[%emt 0:00:03]} 51. b5 {[%emt 0:00:03]} Bxf5 {[%emt 0:00:02]} 52. Bxf5 {[%emt 0:00:03]} Rxf5 {[%emt 0:00:01]} 53. b6 {[%emt 0:00:01]} Rf3 {[%emt 0:00:04]} 54. b7 {[%emt 0:00:02]} Rb3 {[%emt 0:00:01]} 55. b8=Q+ {[%emt 0:00:03]} Rxb8 {[%emt 0:00:02]} 56. Bxb8 {[%emt 0:00:03]} Kd7 {[%emt 0:00:01]} 57. Ke2 {[%emt 0:00:03]} e4 {[%emt 0:00:03]} 58. Bf4 {[%emt 0:00:02]} Ke6 {[%emt 0:00:02]} 59. Ke3 {[%emt 0:00:02]} f5 {[%emt 0:00:01]} 60. Bh2 {[%emt 0:00:03]} Kf6 {[%emt 0:00:02]} 61. Kf4 {[%emt 0:00:01]} Ke6 {[%emt 0:00:03]} 62. Bg1 {[%emt 0:00:02]} Kf6 {[%emt 0:00:01]} 63. Bd4+ {[%emt 0:00:02]} Kg6 {[%emt 0:00:01]} 64. Be5 {[%emt 0:00:02]} Kf7 {[%emt 0:00:04]} 65. Kxf5 {[%emt 0:00:02]} e3 {[%emt 0:00:02]} 66. Bc3 {[%emt 0:00:02]} e2 {[%emt 0:00:01]} 67. Be1 {[%emt 0:00:02]} Ke7 {[%emt 0:00:02]} 68. Kf4 {[%emt 0:00:02]} Kd6 {[%emt 0:00:01]} 69. Ke3 {[%emt 0:00:01]} Kd5 {[%emt 0:00:02]} 70. Kxe2 {[%emt 0:00:01]} 1/2-1/2

[Event "Queens Festival Final-D 2022"]
[Site "Tornelo"]
[Date "2022.06.25"]
[Round "1.6"]
[White "Bakhshizada, Asnad"]
[Black "Rajaram, Anika"]
[Result "1-0"]
[ECO "D37"]
[WhiteElo "1052"]
[BlackElo "1499"]
[Annotator "NA RC"]
[PlyCount "77"]
[EventDate "2022.06.24"]
[EventType "tourn"]
[EventCountry "NET"]
[SourceTitle "playchess.com"]
[Source "ChessBase"]
[SourceQuality "1"]
[TimeControl "180+2"]

1. d4 {[%emt 0:00:02]} d5 {[%emt 0:00:04]} 2. c4 {[%emt 0:00:04]} e6 {[%emt 0:00:02]} 3. Nc3 {[%emt 0:00:03]} Be7 {[%emt 0:00:03]} 4. Nf3 {[%emt 0:00:01]} Nf6 {[%emt 0:00:04]} 5. Bf4 {[%emt 0:00:02]} O-O {[%emt 0:00:06]} 6. e3 {[%emt 0:00:02]} c5 {[%emt 0:00:02]} 7. cxd5 {[%emt 0:00:05]} Nxd5 {[%emt 0:00:07]} 8. Nxd5 {[%emt 0:00:03]} Qxd5 {[%emt 0:00:03]} 9. dxc5 {[%emt 0:00:06]} Qxc5 {[%emt 0:00:12]} 10. Be2 {[%emt 0:00:20]} Qb4+ {[%emt 0:00:11]} 11. Qd2 {[%emt 0:00:07]} Qxd2+ {[%emt 0:00:03]} 12. Nxd2 {[%emt 0:00:08]} Nc6 {[%emt 0:00:04]} 13. O-O {[%emt 0:00:04]} e5 {[%emt 0:00:14]} 14. Bg3 {[%emt 0:00:03]} Be6 {[%emt 0:00:02]} 15. Bc4 {[%emt 0:00:05]} Bxc4 {[%emt 0:00:08]} 16. Nxc4 {[%emt 0:00:02]} f6 {[%emt 0:00:02]} 17. Rad1 {[%emt 0:00:05]} Rfd8 {[%emt 0:00:02]} 18. a3 {[%emt 0:00:03]} b5 {[%emt 0:00:09]} 19. Nd2 {[%emt 0:00:08]} a6 {[%emt 0:00:07]} 20. Nb3 {[%emt 0:00:03]} Rac8 {[%emt 0:00:31]} 21. h3 {[%emt 0:00:05]} Kf7 {[%emt 0:00:01]} 22. Rc1 {[%emt 0:00:08]} Rd3 {[%emt 0:00:22]} 23. Na5 {[%emt 0:00:13]} Rd6 {[%emt 0:00:04]} 24. Nb3 {[%emt 0:00:06]} Rcd8 {[%emt 0:00:08]} 25. Nc5 {[%emt 0:00:11]} Rd2 {[%emt 0:00:31]} 26. Ne4 {[%emt 0:00:06]} Rxb2 {[%emt 0:00:08]} 27. Rxc6 {[%emt 0:00:02]} Bxa3 {[%emt 0:00:04]} 28. Rxa6 {[%emt 0:00:02]} Be7 {[%emt 0:00:04]} 29. Rb6 {[%emt 0:00:25]} b4 {[%emt 0:00:02]} 30. Rc1 {[%emt 0:00:11]} Rd7 {[%emt 0:00:07]} 31. h4 {[%emt 0:00:13]} h6 {[%emt 0:00:02]} 32. Rb8 {[%emt 0:00:18]} f5 {[%emt 0:00:07]} 33. Bxe5 {[%emt 0:00:02]} fxe4 {[%emt 0:00:04]} 34. Bxb2 {[%emt 0:00:02]} Rd2 {[%emt 0:00:04]} 35. Bd4 {[%emt 0:00:02]} Ra2 {[%emt 0:00:04]} 36. Rb7 {[%emt 0:00:02]} Ra4 {[%emt 0:00:02]} 37. Rb1 {[%emt 0:00:02]} Ra2 {[%emt 0:00:02]} 38. Bc5 {[%emt 0:00:03]} Kf6 {[%emt 0:00:02]} 39. Bxe7+ {[%emt 0:00:02]} 1-0

[Event "Queens Festival Final-D 2022"]
[Site "Tornelo"]
[Date "2022.06.25"]
[Round "2.2"]
[White "Rozas Lazcano, Valeska"]
[Black "Bakhshizada, Asnad"]
[Result "1-0"]
[ECO "C02"]
[WhiteElo "1551"]
[BlackElo "1052"]
[Annotator "NA RC"]
[PlyCount "91"]
[EventDate "2022.06.24"]
[EventType "tourn"]
[EventCountry "NET"]
[SourceTitle "playchess.com"]
[Source "ChessBase"]
[SourceQuality "1"]
[TimeControl "180+2"]

1. e4 {[%emt 0:00:02]} e6 {[%emt 0:00:04]} 2. d4 {[%emt 0:00:04]} d5 {[%emt 0:00:03]} 3. e5 {[%emt 0:00:01]} c5 {[%emt 0:00:02]} 4. c3 {[%emt 0:00:03]} Nc6 {[%emt 0:00:04]} 5. Nf3 {[%emt 0:00:01]} Qb6 {[%emt 0:00:01]} 6. a3 {[%emt 0:00:02]} cxd4 {[%emt 0:00:03]} 7. cxd4 {[%emt 0:00:02]} Nge7 {[%emt 0:00:01]} 8. b4 {[%emt 0:00:01]} Nf5 {[%emt 0:00:02]} 9. Be3 {[%emt 0:00:02]} Nxe3 {[%emt 0:00:03]} 10. fxe3 {[%emt 0:00:01]} Be7 {[%emt 0:00:01]} 11. Bd3 {[%emt 0:00:02]} Bd7 {[%emt 0:00:02]} 12. O-O {[%emt 0:00:04]} a5 {[%emt 0:00:03]} 13. b5 {[%emt 0:00:02]} Nd8 {[%emt 0:00:07]} 14. a4 {[%emt 0:00:04]} f6 {[%emt 0:00:04]} 15. exf6 {[%emt 0:00:04]} Bxf6 {[%emt 0:00:04]} 16. Nc3 {[%emt 0:00:02]} Nf7 {[%emt 0:00:03]} 17. Rc1 {[%emt 0:00:02]} Nd6 {[%emt 0:00:05]} 18. Qe2 {[%emt 0:00:05]} O-O {[%emt 0:00:08]} 19. Nd2 {[%emt 0:00:17]} Rac8 {[%emt 0:00:11]} 20. Nb3 {[%emt 0:00:06]} Qd8 {[%emt 0:00:17]} 21. Nc5 {[%emt 0:00:04]} b6 {[%emt 0:00:04]} 22. Nxd7 {[%emt 0:00:05]} Qxd7 {[%emt 0:00:02]} 23. Na2 {[%emt 0:00:22]} Ne4 {[%emt 0:00:08]} 24. Bxe4 {[%emt 0:00:26]} dxe4 {[%emt 0:00:04]} 25. Nc3 {[%emt 0:00:11]} Rfe8 {[%emt 0:00:19]} 26. Nxe4 {[%emt 0:00:05]} Rxc1 {[%emt 0:00:10]} 27. Rxc1 {[%emt 0:00:03]} Rf8 {[%emt 0:00:09]} 28. Qc4 {[%emt 0:00:05]} Qf7 {[%emt 0:00:15]} 29. Rf1 {[%emt 0:00:05]} Qe7 {[%emt 0:00:07]} 30. Qc6 {[%emt 0:00:08]} Rb8 {[%emt 0:00:25]} 31. Qd6 {[%emt 0:00:04]} Qxd6 {[%emt 0:00:06]} 32. Nxd6 {[%emt 0:00:02]} Rd8 {[%emt 0:00:05]} 33. Ne4 {[%emt 0:00:02]} Be7 {[%emt 0:00:02]} 34. Rc1 {[%emt 0:00:05]} Rd7 {[%emt 0:00:17]} 35. Rc6 {[%emt 0:00:02]} Bd8 {[%emt 0:00:08]} 36. Rxe6 {[%emt 0:00:05]} Kf7 {[%emt 0:00:11]} 37. Re5 {[%emt 0:00:08]} Rc7 {[%emt 0:00:05]} 38. Rf5+ {[%emt 0:00:13]} Ke6 {[%emt 0:00:05]} 39. Rf1 {[%emt 0:00:05]} Bh4 {[%emt 0:00:04]} 40. g3 {[%emt 0:00:05]} Be7 {[%emt 0:00:03]} 41. Kg2 {[%emt 0:00:03]} Bb4 {[%emt 0:00:02]} 42. Nf2 {[%emt 0:00:11]} Be7 {[%emt 0:00:02]} 43. e4 {[%emt 0:00:02]} Rc4 {[%emt 0:00:04]} 44. Rd1 {[%emt 0:00:13]} Rxa4 {[%emt 0:00:02]} 45. Ng4 {[%emt 0:00:04]} Rb4 {[%emt 0:00:03]} 46. d5+ {[%emt 0:00:03]} 1-0

[Event "Queens Festival Final-D 2022"]
[Site "Tornelo"]
[Date "2022.06.25"]
[Round "2.4"]
[White "Mak, Xiu Ning Charlene"]
[Black "Jiang, Tianyu"]
[Result "1-0"]
[ECO "B44"]
[WhiteElo "1573"]
[BlackElo "1502"]
[Annotator "NA RC"]
[PlyCount "129"]
[EventDate "2022.06.24"]
[EventType "tourn"]
[EventCountry "NET"]
[SourceTitle "playchess.com"]
[Source "ChessBase"]
[SourceQuality "1"]
[TimeControl "180+2"]

1. e4 {[%emt 0:00:02]} c5 {[%emt 0:00:05]} 2. Nf3 {[%emt 0:00:02]} e6 {[%emt 0:00:01]} 3. d4 {[%emt 0:00:02]} cxd4 {[%emt 0:00:00]} 4. Nxd4 {[%emt 0:00:01]} Nc6 {[%emt 0:00:01]} 5. Nxc6 {[%emt 0:00:02]} bxc6 {[%emt 0:00:01]} 6. Bd3 {[%emt 0:00:01]} d5 {[%emt 0:00:02]} 7. O-O {[%emt 0:00:10]} Qc7 {[%emt 0:00:04]} 8. c4 {[%emt 0:00:03]} Nf6 {[%emt 0:00:06]} 9. Nc3 {[%emt 0:00:06]} Bb4 {[%emt 0:00:48]} 10. cxd5 {[%emt 0:00:05]} Bxc3 {[%emt 0:00:02]} 11. bxc3 {[%emt 0:00:02]} cxd5 {[%emt 0:00:02]} 12. exd5 {[%emt 0:00:10]} Nxd5 {[%emt 0:00:02]} 13. c4 {[%emt 0:00:06]} Nf6 {[%emt 0:00:05]} 14. Ba3 {[%emt 0:00:02]} Bb7 {[%emt 0:00:07]} 15. Rb1 {[%emt 0:00:04]} h5 {[%emt 0:00:33]} 16. Qa4+ {[%emt 0:00:08]} Bc6 {[%emt 0:00:04]} 17. Qb4 {[%emt 0:00:03]} Ng4 {[%emt 0:00:17]} 18. Qd6 {[%emt 0:00:21]} Qxd6 {[%emt 0:00:05]} 19. Bxd6 {[%emt 0:00:00]} Rd8 {[%emt 0:00:16]} 20. c5 {[%emt 0:00:02]} Nf6 {[%emt 0:00:11]} 21. Bb5 {[%emt 0:00:06]} Bxb5 {[%emt 0:00:12]} 22. Rxb5 {[%emt 0:00:00]} Ne4 {[%emt 0:00:02]} 23. Be5 {[%emt 0:00:11]} O-O {[%emt 0:00:05]} 24. f3 {[%emt 0:00:02]} Nf6 {[%emt 0:00:08]} 25. Bd6 {[%emt 0:00:02]} Rfe8 {[%emt 0:00:02]} 26. Rb7 {[%emt 0:00:01]} Ra8 {[%emt 0:00:05]} 27. c6 {[%emt 0:00:03]} Rec8 {[%emt 0:00:07]} 28. Rc1 {[%emt 0:00:02]} Ne8 {[%emt 0:00:03]} 29. Be7 {[%emt 0:00:05]} Nc7 {[%emt 0:00:06]} 30. Bd6 {[%emt 0:00:04]} Ne8 {[%emt 0:00:02]} 31. Bf4 {[%emt 0:00:07]} f6 {[%emt 0:00:03]} 32. Be3 {[%emt 0:00:01]} a6 {[%emt 0:00:07]} 33. Bb6 {[%emt 0:00:03]} Nd6 {[%emt 0:00:02]} 34. Rd7 {[%emt 0:00:03]} Nf7 {[%emt 0:00:04]} 35. Re7 {[%emt 0:00:04]} e5 {[%emt 0:00:04]} 36. a4 {[%emt 0:00:07]} Kf8 {[%emt 0:00:01]} 37. Rd7 {[%emt 0:00:02]} Ke8 {[%emt 0:00:02]} 38. a5 {[%emt 0:00:04]} Kf8 {[%emt 0:00:01]} 39. Bc5+ {[%emt 0:00:02]} Kg8 {[%emt 0:00:01]} 40. Be7 {[%emt 0:00:02]} Rab8 {[%emt 0:00:04]} 41. c7 {[%emt 0:00:06]} Ra8 {[%emt 0:00:01]} 42. Bd8 {[%emt 0:00:01]} Kf8 {[%emt 0:00:03]} 43. Rcd1 {[%emt 0:00:08]} Ke8 {[%emt 0:00:04]} 44. Re7+ {[%emt 0:00:02]} Kf8 {[%emt 0:00:01]} 45. Rdd7 {[%emt 0:00:03]} Nxd8 {[%emt 0:00:03]} 46. cxd8=Q+ {[%emt 0:00:07]} Rxd8 {[%emt 0:00:00]} 47. Rxg7 {[%emt 0:00:06]} Rab8 {[%emt 0:00:06]} 48. Rdf7+ {[%emt 0:00:04]} Ke8 {[%emt 0:00:01]} 49. Rxf6 {[%emt 0:00:10]} Rb1+ {[%emt 0:00:02]} 50. Kf2 {[%emt 0:00:02]} Rd2+ {[%emt 0:00:02]} 51. Ke3 {[%emt 0:00:01]} Rd4 {[%emt 0:00:04]} 52. Rh6 {[%emt 0:00:08]} Rb3+ {[%emt 0:00:01]} 53. Kf2 {[%emt 0:00:01]} Kf8 {[%emt 0:00:03]} 54. Rc7 {[%emt 0:00:05]} Rb2+ {[%emt 0:00:02]} 55. Kg3 {[%emt 0:00:02]} h4+ {[%emt 0:00:02]} 56. Kh3 {[%emt 0:00:02]} Kg8 {[%emt 0:00:04]} 57. Rxa6 {[%emt 0:00:02]} Rd8 {[%emt 0:00:02]} 58. Re6 {[%emt 0:00:03]} Rb5 {[%emt 0:00:02]} 59. a6 {[%emt 0:00:01]} Ra5 {[%emt 0:00:01]} 60. a7 {[%emt 0:00:01]} Ra8 {[%emt 0:00:02]} 61. Ree7 {[%emt 0:00:01]} Ra4 {[%emt 0:00:02]} 62. Rb7 {[%emt 0:00:02]} Kf8 {[%emt 0:00:03]} 63. Rec7 {[%emt 0:00:05]} Ke8 {[%emt 0:00:02]} 64. Rb8+ {[%emt 0:00:02]} Rxb8 {[%emt 0:00:02]} 65. axb8=Q# {[%emt 0:00:02]} 1-0